Cogmind - Beta 14 @@@ ROGUE MODE // 2025.05.02 @ 17:06:31 Player: GiggleBox Result: Destroyed by H-71 Marshal with Heavy Mass Driver Performance ------------- Evolutions (6) 3000 Regions Visited (6) 1200 Robots Destroyed (70) 350 Value Destroyed (1917) 1917 Prototype IDs (1) 20 Alien Tech Used (0) 0 Bonus (308) 308 TOTAL SCORE: 6795 Bonus ------- Follower Combat Kills 208 Entered DSFs 500 Friendly Fire -400 Cogmind --------- Core Integrity 0/1150 Matter 278/300 Energy 25/100 System Corruption 0% Temperature Cool (0) Movement Walking (120) Location -4/Factory Parts ------- > --- POWER (2) -------- (None) > --- PROPULSION (5) --- Advanced Myomer Leg Advanced Myomer Leg Advanced Myomer Leg > --- UTILITY (8) ------ (None) > --- WEAPON (4) ------- (None) > --- INVENTORY (5) ---- Heat Sink Magnetic Acceleration Cannon Subdweller Shrapnel Launcher Makeshift Hammer Shrapnel Trap Peak State ------------ > --- POWER ------------ Light Angular Momentum Engine Neutrino Core > --- PROPULSION ------- Compact Wheel Compact Wheel Compact Wheel > --- UTILITY ---------- Improved Heat Sink Advanced Cooling System High-capacity Storage Unit Medium Battery Energy Well Enhanced Optical Array Improved Terrain Scanner Advanced Transmission Jammer > --- WEAPON ----------- Heavy Disruptor Cannon Heavy Disruptor Cannon > --- INVENTORY -------- Heat Sink Riot Gun Tesla Rifle Tesla Rifle Proton Cannon Magnetic Acceleration Cannon Magnetic Acceleration Cannon Magnetic Acceleration Cannon Magnetic Acceleration Cannon Magnetic Acceleration Cannon Magnetic Acceleration Cannon Grenade Launcher Subdweller Shrapnel Launcher Subdweller Shrapnel Launcher Makeshift Hammer Shrapnel Trap Shrapnel Trap [Rating: 79] Favorites ----------- Power Ion Engine Engine Ion Engine Power Core Neutrino Core Propulsion Light Treads Treads Light Treads Leg Advanced Myomer Leg Wheel Compact Wheel Flight Unit Nuclear Pulse Thruster Utility High-capacity Storage Unit Device Seismic Detector Storage High-capacity Storage Unit Processor Enhanced Optical Array Protection Makeshift Kinetic Plating Weapon Heavy EM Pulse Gun Energy Gun Heavy EM Pulse Gun Energy Cannon Proton Cannon Ballistic Gun Barrage Gun Ballistic Cannon Improved Light Cannon Launcher Subdweller Shrapnel Launcher Impact Weapon Makeshift Hammer Build | -11 -10 -10 -7 -5 -5 -4 ------- Run | Yrd Mat Sub Rec Fac DSF Fac Slots Evolved 12 | . . . . 10 . 2 Power 1 | . . . . 1 . . Propulsion 3 | . . . . 2 . 1 Utility 6 | . . . . 5 . 1 Weapon 2 | . . . . 2 . . Parts Attached 95 | 7 13 41 7 8 7 12 Power 7 | 1 2 1 1 1 1 . Engine 6 | 1 2 1 1 . 1 . Core 1 | . . . . 1 . . Reactor . | . . . . . . . Propulsion 16 | 2 3 2 2 . 2 5 Treads 7 | 2 3 2 . . . . Leg 4 | . . . . . . 4 Wheel 4 | . . . 2 . 2 . Hover . | . . . . . . . Flight 1 | . . . . . . 1 Utility 17 | 2 1 3 1 3 3 4 Device 7 | 1 . . . 3 . 3 Storage 4 | 1 1 . . . 2 . Processor 1 | . . . . . 1 . Hackware . | . . . . . . . Protection 5 | . . 3 1 . . 1 Artifact . | . . . . . . . Weapon 55 | 2 7 35 3 4 1 3 Energy Gun 29 | 1 4 19 1 3 . 1 Energy Cannon 3 | . . . . . 1 2 Ballistic Gun 4 | 1 1 . 2 . . . Ballistic Cannon 4 | . 2 2 . . . . Launcher 2 | . . 1 . 1 . . Special Weapon . | . . . . . . . Impact Weapon 13 | . . 13 . . . . Slashing Weapon . | . . . . . . . Piercing Weapon . | . . . . . . . Special Melee Weapon . | . . . . . . . Unidentified Prototypes 1 | . . . . . . 1 Parts Lost 33 | . 1 8 5 . 5 14 Power 6 | . 1 1 1 . 1 2 Propulsion 9 | . . 2 2 . 1 4 Utility 7 | . . 1 1 . 2 3 Weapon 11 | . . 4 1 . 1 5 Highest Loss Streak 13 | . 1 4 2 . 3 13 To Critical Strikes . | . . . . . . . Average Slot Usage (%) 95 | . 99 99 86 73 73 52 Engine 12 | . 13 13 11 5 2 2 Treads 23 | . 27 27 12 . . . Wheel 2 | . . . 9 11 12 8 Device 5 | . 14 2 . 17 14 11 Storage 13 | . 14 14 14 5 9 9 Protection 7 | . . 11 9 5 1 . Energy Gun 21 | . 20 26 10 20 18 2 Ballistic Gun 3 | . 5 . 17 . . . Peak Build Rating 79 | 7 11 20 19 42 63 79 Average Rating 16 | 5 9 14 15 38 48 51 On Entrance 22 | . 7 11 18 14 42 63 Naked Turns 5 | . . . . . . 5 Heaviest Build 107 | 15 53 58 56 85 95 107 Greatest Support 90 | 40 40 40 40 32 48 90 Greatest Overweight (x) 20 | . 1 1 17 2 5 20 Average Overweight (x) 1 | . . 1 1 1 1 1 Largest Inventory Capacity 20 | 8 20 20 20 20 20 20 Average Capacity 19 | 7 17 20 20 20 20 14 Most Carried 20 | 3 14 20 20 17 20 20 Average Carried 15 | 1 9 17 19 15 17 12 Final Capacity 20 | 8 20 20 20 20 20 5 Final Carried 20 | 3 14 19 18 16 20 5 Class Distribution -------------------- 69% | Mutant 19% | Derelict-Mutant 4% | Commander-Mutant 3% | Scavenger-Skirmisher Dominant Class ---------------- Mutant | -10/Materials Mutant | -10/Subcaves Derelict-Mutant | -7/Recycling Commander-Tank | -5/Factory Scavenger-Skirmisher | -5/DSF Mutant | -4/Factory Resources | -11 -10 -10 -7 -5 -5 -4 ----------- Run | Yrd Mat Sub Rec Fac DSF Fac Matter Collected 1822 | 285 360 340 647 . 129 61 Remotely . | . . . . . . . Salvage Created 3537 | 115 599 837 1105 . 766 115 Parts 177 | 5 42 51 38 . 34 7 Haulers Intercepted 2 | . 2 . . . . . Recyclers Shooed 9 | . 1 . 8 . . . Parts Field Recycled . | . . . . . . . Retrieved Matter . | . . . . . . . Parts Self-Destructed 17 | . . 17 . . . . Prevented 2 | . . 2 . . . . Kills | -11 -10 -10 -7 -5 -5 -4 ------- Run | Yrd Mat Sub Rec Fac DSF Fac Combat Hostiles Destroyed 44 | . 11 18 6 . 7 2 Guns 36 | . 11 16 6 . 3 . Cannons 2 | . . . . . 1 1 AOE 2 | . . 2 . . . . Classes Destroyed 15 | 2 5 2 2 . 3 1 Builder 1 | . 1 . . . . . Tunneler 3 | 1 1 . . . 1 . Hauler 2 | . 2 . . . . . Recycler 13 | 1 1 . 10 . 1 . Turret 2 | . . 2 . . . . Watcher 3 | . 3 . . . . . Swarmer 11 | . 6 3 1 . . 1 Grunt 10 | . 5 . 1 . 4 . Duelist 1 | . . . 1 . . . Protector 1 | . . . . . 1 . Sentry 1 | . . . . . . 1 Specialist 2 | . . . . . 2 . Hunter 2 | . . . . . 2 . Programmer 3 | . . . 3 . . . Subdweller 15 | . . 15 . . . . Best Kill Streak 5 | 2 5 3 5 . 4 2 Combat Bots Only 4 | . 3 3 2 . 4 2 Max Kills in Single Turn 2 | 1 2 2 2 . 2 1 Gunslinging 1 | . . 1 1 . . . Exploded 1 | . . 1 . . . . Melee . | . . . . . . . Uniques/NPCs Destroyed . | . . . . . . . Combat | -11 -10 -10 -7 -5 -5 -4 -------- Run | Yrd Mat Sub Rec Fac DSF Fac Hostile Shots Fired 503 | . 61 87 81 . 90 184 Missed 165 | . 16 28 21 . 30 70 Damage Taken 4980 | . 457 1016 638 . 558 2311 Core 1462 | . 83 75 64 . 77 1163 Absorbed by Shields 375 | . . . 65 . 310 . Ignored by Resistances 24 | . . 22 2 . . . Regen/Repaired (Parts) 181 | . 181 . . . . . Core Remaining (%) 67 | 100 . . 11 . 92 . Volleys Fired 207 | 5 68 56 54 . 18 6 Largest 4 | 2 2 2 2 . 4 2 Hottest 270 | 60 90 95 56 . 270 220 Shots Fired 429 | 10 121 109 108 . 70 11 Gun 376 | 10 106 89 108 . 62 1 Cannon 53 | . 15 20 . . 8 10 Launcher . | . . . . . . . Special . | . . . . . . . Kinetic 218 | 5 85 20 108 . . . Thermal . | . . . . . . . Explosive . | . . . . . . . Electromagnetic 211 | 5 36 89 . . 70 11 Robot Hit Streak 17 | 6 7 17 10 . 6 5 Robot Miss Streak 7 | 2 4 3 5 . 7 1 Penetration Max . | . . . . . . . Secondary Targets 7 | . 2 4 1 . . . Max Gunslinging Chain 1 | . 1 1 1 . . . Shots Hit Robots 268 | 7 52 87 71 . 43 8 Core Hits 110 | 3 24 34 25 . 21 3 Critical Kills . | . . . . . . . Critical Parts Destroyed 2 | . . . 2 . . . Critical Strikes 3 | . . 1 2 . . . Destroy 2 | . . . 2 . . . Corrupt 1 | . . 1 . . . . Melee Attacks 27 | . . 27 . . . . Impact 27 | . . 27 . . . . Slashing . | . . . . . . . Piercing . | . . . . . . . Sneak Attacks . | . . . . . . . Combat Hostiles . | . . . . . . . Follow-up Attacks . | . . . . . . . Damage Inflicted 5487 | 102 958 1313 1455 . 1439 220 Guns 4195 | 102 788 918 1455 . 920 12 Cannons 587 | . . 250 . . 132 205 Explosions 702 | . 170 145 . . 387 . Melee . | . . . . . . . Ramming 3 | . . . . . . 3 Kinetic 2222 | 47 470 250 1455 . . . Thermal 702 | . 170 145 . . 387 . Explosive . | . . . . . . . Electromagnetic 2560 | 55 318 918 . . 1052 217 Impact . | . . . . . . . Slashing . | . . . . . . . Piercing . | . . . . . . . Highest Corruption 3 | . . . 3 . 2 . Average Corruption 2 | . . . 2 . 1 . Corruption Purged . | . . . . . . . Corruption Blocked . | . . . . . . . Effects 17 | . . . 17 . . . Message Errors 5 | . . . 5 . . . Matter Fused 2 | . . . 2 . . . Energy Discharges 2 | . . . 2 . . . Data Loss (minor) 2 | . . . 2 . . . Data Loss (major) 2 | . . . 2 . . . Misfires 2 | . . . 2 . . . Weapon Failures 2 | . . . 2 . . . Overload Shots . | . . . . . . . Overflow Damage 82 | . . 22 . . 60 . Projectiles 32 | . . 8 . . 24 . Explosions 50 | . . 14 . . 36 . Melee . | . . . . . . . Knockbacks 2 | . . 2 . . . . Impact . | . . . . . . . Kinetic 2 | . . 2 . . . . Secondary . | . . . . . . . Self-Inflicted Damage 183 | . 20 163 . . . . Shots 4 | . 1 3 . . . . Rammed 1 | . . . . . . 1 Targets Rammed 2 | . . . . . . 2 Kicked 1 | . . . . . . 1 Crushed . | . . . . . . . Highest Temperature 327 | . 150 7 33 . 327 10 Average Temperature 43 | . 38 6 12 . 88 6 Received Heat Transfer 650 | . 96 90 168 . 200 96 Siege Activations . | . . . . . . . Robots Corrupted 5 | . 1 . . . 3 1 Combat Hostiles 4 | . . . . . 3 1 Parts Fried 18 | . 2 7 . . 8 1 Impact Corruptions . | . . . . . . . Robots Melted . | . . . . . . . Combat Hostiles . | . . . . . . . Parts Melted . | . . . . . . . Heat Transferred 650 | . 200 100 . . 350 . Parts Sabotaged . | . . . . . . . Parts Stolen . | . . . . . . . Parts Stripped . | . . . . . . . Power Chain Reactions 7 | . 2 3 . . 2 . Alert | -11 -10 -10 -7 -5 -5 -4 ------- Run | Yrd Mat Sub Rec Fac DSF Fac Peak Influence 302 | 10 302 . 199 67 228 169 Initial 119 | . 6 . 43 62 46 119 Average 71 | 2 54 . 71 63 161 131 Maximum Alert Level 1 | . 1 . . . 1 . Low Security (%) 94 | 100 95 . 100 100 58 100 Level 1 5 | . 4 . . . 41 . Level 2 . | . . . . . . . Level 3 . | . . . . . . . Level 4 . | . . . . . . . Level 5 . | . . . . . . . High Security . | . . . . . . . Max Security . | . . . . . . . Sterilizations 1 | . . . . . 1 . Squads Dispatched 7 | . 2 . . . 2 3 Investigation 2 | . 1 . . . . 1 Extermination 1 | . . . . . . 1 Reinforcement 4 | . 1 . . . 2 1 Assault . | . . . . . . . Garrison . | . . . . . . . Intercept . | . . . . . . . Searches Triggered . | . . . . . . . Construction Impeded . | . . . . . . . Haulers Reinforced . | . . . . . . . Active Scanning Responses . | . . . . . . . Cargo Convoy Interrupts . | . . . . . . . Stealth | -11 -10 -10 -7 -5 -5 -4 --------- Run | Yrd Mat Sub Rec Fac DSF Fac Distress Signals . | . . . . . . . Communications Jammed . | . . . . . . . Distress Signals . | . . . . . . . Times Spotted 73 | . 14 24 10 . 12 13 Peak Tracking Total 6 | . 3 3 4 . 3 6 Tactical Retreats 10 | . . 2 2 . 2 4 Traps | -11 -10 -10 -7 -5 -5 -4 ------- Run | Yrd Mat Sub Rec Fac DSF Fac Traps Triggered 4 | . 2 . . . 2 . Indirectly . | . . . . . . . Trap Hack Attempts . | . . . . . . . Triggered . | . . . . . . . Disarmed . | . . . . . . . Reprogrammed . | . . . . . . . Reused . | . . . . . . . Traps Extracted . | . . . . . . . Installed 1 | . . . . . 1 . Triggered . | . . . . . . . Most Traps Carried 3 | . . 3 3 3 3 2 Machines | -11 -10 -10 -7 -5 -5 -4 ---------- Run | Yrd Mat Sub Rec Fac DSF Fac Machines Disabled 3 | . . 2 1 . . . Max in Single Turn 1 | . . 1 . . . . Machines Repaired . | . . . . . . . Machines Dismantled . | . . . . . . . Machines Sabotaged . | . . . . . . . Overloaded Fab Kills . | . . . . . . . Hacking | -11 -10 -10 -7 -5 -5 -4 --------- Run | Yrd Mat Sub Rec Fac DSF Fac Machines Accessed 23 | . 9 3 7 2 . 2 Terminals 14 | . 7 . 5 2 . . Fabricators . | . . . . . . . Repair Stations 3 | . 1 . . . . 2 Recycling Units 3 | . 1 . 2 . . . Scanalyzers . | . . . . . . . Garrison Access . | . . . . . . . Total Hacks 62 | . 33 7 11 6 . 5 Successful 26 | . 16 7 2 1 . . Failed 36 | . 17 . 9 5 . 5 Catastrophic 4 | . . . 3 1 . . Database Lockouts . | . . . . . . . Manual 33 | . 25 . 5 3 . . Terminals 41 | . 26 . 9 6 . . Fabricators . | . . . . . . . Repair Stations 10 | . 5 . . . . 5 Recycling Units 4 | . 2 . 2 . . . Scanalyzers . | . . . . . . . Garrison Access . | . . . . . . . Terminal Hacks 12 | . 4 7 . 1 . . Record 5 | . . 5 . . . . Open Door 1 | . . 1 . . . . Open DSF 1 | . . . . 1 . . Terminal Index 1 | . 1 . . . . . Maintenance Status 1 | . 1 . . . . . Investigation Status 1 | . 1 . . . . . Coupling Status 1 | . 1 . . . . . Release Object 1 | . . 1 . . . . Fabricator Hacks . | . . . . . . . Repair Station Hacks 4 | . 4 . . . . . Scan Component 2 | . 2 . . . . . Repair 2 | . 2 . . . . . Recycling Unit Hacks 1 | . 1 . . . . . Retrieve Components 1 | . 1 . . . . . Scanalyzer . | . . . . . . . Garrison Access Hacks . | . . . . . . . Unauthorized Hacks 9 | . 7 . 2 . . . Terminals 8 | . 7 . 1 . . . Botnet 2 | . 2 . . . . . Skim 6 | . 5 . 1 . . . Fabricators . | . . . . . . . Repair Stations . | . . . . . . . Recycling Units 1 | . . . 1 . . . Recyclers 1 | . . . 1 . . . Scanalyzers . | . . . . . . . Garrison Access . | . . . . . . . Data Cores Recovered . | . . . . . . . Used . | . . . . . . . Hacking Detections 19 | . 9 . 6 2 . 2 Full Trace Events 2 | . . . 1 . . 1 Feedback Events . | . . . . . . . Feedback Blocked . | . . . . . . . Robot Schematics Acquired . | . . . . . . . Robots Built . | . . . . . . . Authchips . | . . . . . . . Time . | . . . . . . . Total Robot Build Rating . | . . . . . . . Part Schematics Acquired . | . . . . . . . Parts Built . | . . . . . . . Authchips . | . . . . . . . Time . | . . . . . . . Total Part Build Rating . | . . . . . . . Parts Repaired 2 | . 2 . . . . . Time 52 | . 52 . . . . . Parts Recycled . | . . . . . . . Recycled Matter . | . . . . . . . Retrieved Matter . | . . . . . . . Retrieved Components 10 | . 10 . . . . . Parts Scanalyzed . | . . . . . . . Part Schematics Acquired . | . . . . . . . Parts Damaged . | . . . . . . . Bothacking | -11 -10 -10 -7 -5 -5 -4 ------------ Run | Yrd Mat Sub Rec Fac DSF Fac Used RIF Installer . | . . . . . . . Robots Hacked . | . . . . . . . Non-combat . | . . . . . . . Combat . | . . . . . . . Robot Hacks Applied . | . . . . . . . Relay Couplers Released . | . . . . . . . Fabnet Peak Effective % . | . . . . . . . Robots Rewired 11 | . . . 11 . . . Allies Hacked . | . . . . . . . Hacks Repelled . | . . . . . . . Allies | -11 -10 -10 -7 -5 -5 -4 -------- Run | Yrd Mat Sub Rec Fac DSF Fac Total Allies 11 | . . . 11 . . . Largest Group 11 | . . . 11 7 6 . Highest-Rated Group 178 | . . . 178 126 116 . Highest-Rated Ally 40 | . . . 40 40 40 . Total Orders 2 | . . . 2 . . . FOLLOW 1 | . . . 1 . . . DROP 1 | . . . 1 . . . Ally Attacks 55 | . . . 40 . 15 . Total Damage 1189 | . . . 665 . 524 . Kills 6 | . . . 5 . 1 . Allies Corrupted . | . . . . . . . Allies Melted . | . . . . . . . Intel | -11 -10 -10 -7 -5 -5 -4 ------- Run | Yrd Mat Sub Rec Fac DSF Fac Robot Analysis Total . | . . . . . . . Derelict Logs Recovered 1 | . . 1 . . . . Drone Launches . | . . . . . . . Drone Recoveries . | . . . . . . . Exploration | -11 -10 -10 -7 -5 -5 -4 ------------- Run | Yrd Mat Sub Rec Fac DSF Fac Turns Passed 9654 | 97 2056 5483 1288 137 286 307 Spaces Moved 3875 | 44 793 2099 504 72 142 221 Core 29 | 1 . . 17 . . 11 Treads 3142 | 43 793 2099 207 . . . Legs 54 | . . . . . . 54 Wheels 608 | . . . 280 72 142 114 Hover . | . . . . . . . Flight 42 | . . . . . . 42 Fastest Speed 40 | 50 160 240 115 115 115 40 Average Speed 220 | 157 223 245 199 127 126 111 Slowest Speed 1050 | 160 240 260 900 130 175 1050 Overloaded Moves . | . . . . . . . Propulsion Burnouts . | . . . . . . . Robots Hopped 3 | . . . . . . 3 Cave-ins Triggered . | . . . . . . . Exploration Rate (%) 51 | 5 98 97 62 2 87 8 Regions Visited 6 Branch Regions 2 Pre-discovered Areas 2 | . 1 1 . . . . Known Exits Taken 2 | . 1 . . 1 . . Unknown Exits Taken 3 | 1 . 1 1 . . . Scrap Searched 16 | . . 16 . . . . Spaces Dug 8 | . 5 3 . . . . Terrain Destroyed 26 | . 10 15 . . 1 . Melee 3 | . . 3 . . . . Projectile 6 | . 6 . . . . . AOE 17 | . 4 12 . . 1 . Terrain Rammed . | . . . . . . . Walls Destroyed . | . . . . . . . Machines Disabled . | . . . . . . . Actions | -11 -10 -10 -7 -5 -5 -4 --------- Run | Yrd Mat Sub Rec Fac DSF Fac Total 4549 | 58 948 2269 685 115 208 266 Wait 189 | . 58 32 31 34 14 20 Move 3863 | 43 792 2098 503 71 141 215 Hop 3 | . . . . . . 3 Pick Up 48 | 3 14 14 1 2 11 3 Fast Attach 29 | 7 5 . 3 2 6 6 Attach 22 | . 1 8 2 4 2 5 Detach 1 | . . . . . . 1 Swap 45 | . 7 33 2 2 . 1 Drop 15 | . 3 1 . . 7 4 Fire 207 | 5 68 56 54 . 18 6 Melee 27 | . . 27 . . . . Ram 1 | . . . . . . 1 Kick 1 | . . . . . . 1 Crush . | . . . . . . . Escape Stasis 8 | . . . . . 8 . Rewire 89 | . . . 89 . . . Trap 1 | . . . . . 1 . Miscellaneous . | . . . . . . . Route ------- -11/Scrapyard -10/Materials (discovered 6 exits: *Mat x3 / [*Min x2] / *Sub) -10/Subcaves (discovered 3 exits: *Mat x2 / *Rec) -7/Recycling -5/Factory -5/DSF -4/Factory History --------- Turn | Location | Event 7 | -11/Scrapyard | Discovered new exit (range 15) 98 | -11/Scrapyard | Entered Materials 204 | -10/Materials | Discovered new exit (range 15) 295 | -10/Materials | Discovered new exit (range 12) 304 | -10/Materials | Build established: Mutant 523 | -10/Materials | Discovered new exit (range 10) 864 | -10/Materials | Discovered new exit (range 15) 1257 | -10/Materials | Repaired Lgt. Treads 1285 | -10/Materials | Repaired Lgt. Treads 1409 | -10/Materials | Discovered new exit (range 11) 1737 | -10/Materials | Identified exit to Materials 1781 | -10/Materials | Learned location of Mines (-9) 1790 | -10/Materials | Learned Storage trap positions 1791 | -10/Materials | Learned Storage stockpile data 1821 | -10/Materials | Identified exit to Subcaves 2154 | -10/Materials | Entered Subcaves 2155 | -10/Subcaves | Identified exit to Materials 3932 | -10/Subcaves | Ambushed by Subdweller buried in earth 4191 | -10/Subcaves | Disturbed a concealed Subdweller 4814 | -10/Subcaves | Shifting Twisted Machinery released Riot Gun 4822 | -10/Subcaves | Shifting Twisted Machinery released Sub. Power Source 5036 | -10/Subcaves | Shifting Twisted Machinery released Barrage Gun 5191 | -10/Subcaves | Lost 4 parts (1p1n2w) 5594 | -10/Subcaves | Core integrity fell below 50% 5655 | -10/Subcaves | Shifting Twisted Machinery released Barrage Gun 5686 | -10/Subcaves | Shifting Twisted Machinery released Battle Rifle 6041 | -10/Subcaves | A swath of the cavern ceiling suddenly collapsed 6439 | -10/Subcaves | A swath of the cavern ceiling suddenly collapsed 6870 | -10/Subcaves | Visited Clippyterm 6877 | -10/Subcaves | Learned location of Section 7 (-3) 6951 | -10/Subcaves | Build established: Derelict-Mutant 7209 | -10/Subcaves | Discovered new exit (range 14) 7637 | -10/Subcaves | Entered Recycling 8278 | -7/Recycling | Core integrity fell below 20% 8768 | -7/Recycling | Build established: Commander-Mutant 8785 | -7/Recycling | Lost 3 allies 8878 | -7/Recycling | Discovered new exit (range 15) 8925 | -7/Recycling | Entered Factory 8925 | -5/Factory | Accompanied by 7 allies 8925 | -5/Factory | Evolved 10 slots: Power x1, Propulsion x2, Utility x5, Weapon x2 9016 | -5/Factory | Identified exit to DSF 9062 | -5/Factory | Entered DSF 9062 | -5/DSF | Accompanied by 7 allies 9108 | -5/DSF | Additional patrols routed to DSF 9164 | -5/DSF | Lost 3 parts (1n1u1w) 9222 | -5/DSF | Lost 3 allies 9231 | -5/DSF | Sterilization system engaged 9251 | -5/DSF | Ambient heat levels rising (+10) 9266 | -5/DSF | Ambient heat levels rising (+10) 9281 | -5/DSF | Ambient heat levels rising (+10) 9296 | -5/DSF | Ambient heat levels rising (+10) 9311 | -5/DSF | Ambient heat levels rising (+10) 9326 | -5/DSF | Ambient heat levels rising (+10) 9328 | -5/DSF | Discovered new exit (range 16) 9341 | -5/DSF | Ambient heat levels rising (+10) 9348 | -5/DSF | Entered Factory 9348 | -4/Factory | Evolved 2 slots: Propulsion x1, Utility x1 9438 | -4/Factory | Build established: Scavenger-Skirmisher 9539 | -4/Factory | Released all parts (6) 9569 | -4/Factory | Core integrity fell below 50% 9570 | -4/Factory | Lost 13 parts (2p3n3u5w) 9628 | -4/Factory | Core integrity fell below 20% 9655 | -4/Factory | Destroyed by H-71 Marshal with Heavy Mass Driver Last Messages --------------- 09600_ M-28 Smith repairs S-27 Virus. 09601_ O-24 Administrator uses terminal to summon reinforcements. 09601_ ALERT: Hostiles spotted, dispatching reinforcements to Terminal F003. 09601_ O-24 Administrator locks terminal. 09608_ R-10 Processor collects Faulty Adv. Myomer Leg. 09612_ Connecting with Repair Station... 09612_ ALERT: Suspicious activity at Repair Station F005. Dispatching Investigation squad. 09615_ S-27 Virus suffers critical hit (Burn). 09615_ S-27 Virus destroyed. 09622_ Slug penetrates Wall. 09627_ Acquired 9 matter. 09628_ K-01 Serf collects debris. 09631_ Neutrino Reactor explodes. 09632_ K-01 Serf collects debris. 09633_ Neutrino Reactor explodes. 09633_ K-01 Serf destroyed. 09633_ S-27 Virus destroyed. 09655_ Slug penetrates Wall. Map ----- +----------------------------------------------------+ | ??????? # """" % "" """???????????????? | | ??????? # """" *% """ ??????????? | | ??????? # """"=% ????????? | | ???????######## """" ""????????????? | | ??????????????# """" ????????????? | | ??????????????# "???????????? | | ??????????????# ????????? | | ??????????????####"" ""# ???????????? | | ?????????????????#""R""# ??????????? | | ?????????????????# """"#" "?????????? | | ?????????????????########= ????????? | | ?????????????????####???#%! ?????????? | | ???????????????? ??#![ ?????????? | | ?????????????????"""""??# % ????????? | | ???????????????# """"" ?# ????????? | | ???????????????# """ ?# ????????? | | ???????????????? # ????????? | | ?????????????????""""" # ???????? | | ?????????????????""""" + ???????? | | ???????????????? """ #% ??????? | | ???????????????# # ??????? | | ???????????????########?# ??????? | | ????????????????????#####;#+############?????????? | | ????????????????????# #???????????????? | | ????????????????????# #???????????????? | | ????????????????????# @" " " #???????????????? | | ????????????????????# " " " #???????????????? | | ????????????????????# %" " " #???????????????? | | ????????????????????# " " " #???????????????? | | ????????????????????# " " " #???????????????? | | ????????????????????# !* " " " #???????????????? | | ????????????????????# !* " " " #???????????????? | | ????????????????????# " "?" #???????????????? | | ????????????????????# " "????????????????????? | | ????????????????????# ?????????????????????? | | ????????????????????########?????????????????????? | | ?????????????????????????????????????????????????? | | ?????????????????????????????????????????????????? | | ?????????????????????????????????????????????????? | | ?????????????????????????????????????????????????? | | ?????????????????????????????????????????????????? | | ?????????????????????????????????????????????????? | | ?????????????????????????????????????????????????? | | ?????????????????????????????????????????????????? | | ?????????????????????????????????????????????????? | | ?????????????????????????????????????????????????? | | ?????????????????????????????????????????????????? | | ?????????????????????????????????????????????????? | | ?????????????????????????????????????????????????? | | ?????????????????????????????????????????????????? | +----------------------------------------------------+ Best States ------------- Heat Dissipation 98 Energy Generation 32 Energy Capacity 865 Matter Stores 300 Matter Capacity 300 Sight Range 22 Terrain Scan Range 16 Terrain Scan Density 10 Jamming Range 16 Armor Coverage 225 Resistance: KI 10 Evasion (%) 62 Recoil Reduction 2 Item Schematics ----------------- None Robot Schematics ------------------ None Fabricated ------------ Nothing Alien Tech Used ----------------- None Achievements -------------- Backstab Challenges ------------ None Game ------ Seed HardenedTractorSlayer Manual? 0 Play Time 00:58:36 Cumulative 64.5 hours Start 2025.05.02 @ 16:09:01 End 2025.05.02 @ 17:06:31 Sessions 1 Manual Loads 0 Difficulty Rogue Special Mode None Game No. 73 Rogue 73 Adventurer 0 Explorer 0 Win Type - Total 0 Types 0/0/0/0/0/0/0/0/0 Lore% 18 Gallery% 40 Achievement% 35 Wizard Run 0 Options --------- Layout 0 ASCII 0 Keyboard 1 Movement Numpad Keybinds 0 Fullscreen 1 Font 24/Terminus Map View 76x50 Zoom Use 0% Tactical HUD 1 Map Filters NONE Filters NONE Steam 1 RUN: b72cbd8a-23c2-4f42-b781-d41932dd6781